Workbook

Sheet KıdemIhbar
C1: Kıdem ve İhbar Tazminatı Hesaplama Formu
C3: Hesaplama Parametreleri (sarı ile taralı alanları doldurunuz)
C4: Şirketin ünvanı | I4: 20
C5: İşçinin adı | I5: 24
C6: İşçinin TC kimlik numarası
C7: İşçinin kanuni ikemetgah adresi
C8: İşe giriş (sigorta başlangiç) tarihi
C10: İşten çıkış tarihi | H10: Bu sayfada tek tek yapılan hesaplamalar LİSTE sayfasında otomatik rapor haline gelmektedir.
C14: En son aylık brüt ücreti | F14: 0
C15: Yıl içinde verilen prim ve ikramiyelerin aylık ortalaması
C16: Yıl içinde verilen yemek, yol vb paraların aylık ortalaması
C17: Var ise diğer nakti sosyal yardımlar (BES ödemesi gibi)
C18: Kümülatif Gelir Vergisi Matrahı (tazminattan önceki en son) | F18: 0
C20: Giydirilmiş Ücret Toplamı | F20: 0
C22: Kıdem tazminatı tavanı | H22: Bu sayfada hesaplama yaptırıldığında İbraname otomatik olarak oluşmaktadır.
C26: Kıdem Tazminatı
C27: Çalıştığı süre (gün) | F27: 0
C29: Brüt kidem tazminatı
C31: Damga vergisi (-)
C33: Net Kıdem Tazminatı (TL)
C37: İhbar Tazminatı | H37: Birden fazla kişi için aynı anda hesaplama yaptırmak isterseniz "ÇokluHesap" sayfasını kullanabilirsiniz.
C38: Çalıştığı süre (gün) | F38: 0
C40: İhbar gün sayısı
C42: Brüt ihbar tazminatı
C44: Gelir vergisi (-)
C46: Damga vergisi (-)
C48: Net İhbar Tazminatı (TL)
C50: NET Kıdem ve İhbar Tazminatı Toplamı

Sheet Liste
H2: KıdemIhbar sayfasında yapılan hesaplamalar burada otomatik liste haline gelmektedir. Elle veri girmeyiniz.
C3: KIDEM VE İHBAR TAZMİNATLARI LİSTESİ
B6: Sıra No | C6: İşçinin | D6: İşe Giriş | E6: İşten Çıkış Tarihi | F6: Çalıştığı Süre | G6: Kıdem Ve İhbar Tazminatına Esas | H6: Kümülatif Vergi | I6: Kıdem Tazminatı | J6: Brüt Kıdem | K6: Kıdem Damga | L6: Net Kıdem | M6: İhbar Gün | N6: Brüt İhbar | O6: İhbar Gelir | P6: İhbar Damga | Q6: Net İhbar | R6: NET Kıdem ve İhbar
C7: Adı | D7: Tarihi | E7: Tarihi | F7: (Gün) | G7: Ücreti | H7: Matrahı | I7: Tavanı | J7: tazminatı | K7: Vergisi | L7: Tazminatı | M7: Sayısı | N7: tazminatı | O7: Vergisi | P7: Vergisi | Q7: Tazminatı | R7: Toplamı

Sheet Ibraname
N2: KıdemIhbar sayfasında yapılan hesaplamalar burada otomatik IBRANAME haline gelmektedir. Elle veri girmeyiniz.
C4: İBRANAME
C6: xxx'de 01.01.2020 ile 01 tarihleri arasında çalıştığım bütün süreye ait; haketmiş olduğum tüm aylık ücretlerimle, prim, ikramiye, fazla çalışma, hafta tatili, genel tatil, yolluk, kıdem ve ihbar tazminatlarımı, kullanmadığım yıllık izin ücretlerimle benzeri akdi ve kanuni bilcümle alacaklarımı tamamen ve eksiksiz bir biçimde almış olduğumu beyan ve kabul ederek işveren şirketi bütün akdi ve kanuni alacaklarımdan dolayı kayıtsız ve şartsız gayrikabilirucu ibra eylerim.
C9: İBRA EDENİN
C11: Adı-Soyadı | D11: :
C12: TC Kimlik Numarası | D12: :
C13: Kanuni İkematgah Adresi | D13: :
C14: Tarih | D14: :
E15: İmzası

Sheet ÇokluHesap
D1: ÇOKLU KIDEM VE İHBAR TAZMİNATI HESAPLAMA FORMU-2024
K3: KIDEM TAZMİNATI | O3: İHBAR TAZMİNATI | T3: TOPLAMLAR
D4: Kişinin Adı | E4: Çalıştığı Şirket | F4: Brüt Ücreti | G4: İhbar Öncesi Kümülatif Vergi Matrahı | H4: İşe Giriş Tarihi | I4: İşten Çıkış Tarihi | J4: Çalıştığı Gün Sayısı | K4: Yıllık Kıdem Tavanı | L4: Brüt Kıdem Tazminatı | M4: Damga Vergisi Kesintisi | N4: Net Kıdem Tazminatı | O4: İhbar Günü Sayısı | P4: Brüt İhbar Tazminatı | Q4: Gelir Vergisi Kesintisi | R4: Damga Vergisi Kesintisi | S4: Net İhbar Tazminatı | T4: NET kıdem ve ihbar toplamı | U4: Kıdem ve İhbarın İşverene Toplam Maliyeti
D6: TOPLAMLAR | K6: =SUM(K7:K500) -> 0 | L6: =SUM(L7:L500) -> 0 | M6: =SUM(M7:M500) -> 0 | N6: =SUM(N7:N500) -> 0 | P6: =SUM(P7:P500) -> 0 | Q6: 0 | R6: 0 | S6: 0 | T6: 0 | U6: 0 | Y6: 20
Y7: 24
X12: Bu sayfada aynı anda birden fazla çalışan için kıdem ve ihbar tazminatı hesaplaması yapabilirsiniz

Sheet Data (hidden)
C3: 2024 Yılı
C5: Cari Yıl Gelir Vergisi Tarifesi
C6: DİLİMLER | D6: Dilim Tutar | E6: Dilim Oran
C7: Birinci Dilim | D7: 110000 | E7: 0.15
C8: İkinci Dilim | D8: 230000 | E8: 0.2
C9: Üçüncü Dilim | D9: 870000 | E9: 0.27
C10: Dördüncü Dilim | D10: 3000000 | E10: 0.35
C11: Beşinci Dilim | D11: =D10+0.01 -> 3000000.01 | E11: 0.4
C12: Damga Vergisi Oranı
C13: Güncel Ücret Damga Vergisi Oranı | E13: 0.00759
C15: Kıdem Tazminatı Tavanı
C16: Aylar | E16: Tavan Tutarı
C17: 01 | E17: 35058.58317
C18: 02 | E18: 35058.58317
C19: 03 | E19: 35058.58317
C20: 04 | E20: 35058.58317
C21: 05 | E21: 35058.58317
C22: 06 | E22: 35058.58317
C23: 07 | E23: 35058.58317
C24: 08 | E24: 35058.58317
C25: 09 | E25: 35058.58317
C26: 10 | E26: 35058.58317
C27: 11 | E27: 35058.58317
C28: 12 | E28: 35058.58317
C31: Tarihler
C32: Günler | D32: Aylar | E32: Yıllar
C33: 01 | D33: 01 | E33: 1970
C34: 02 | D34: 02 | E34: 1971
C35: 03 | D35: 03 | E35: 1972
C36: 04 | D36: 04 | E36: 1973
C37: 05 | D37: 05 | E37: 1974
C38: 06 | D38: 06 | E38: 1975
C39: 07 | D39: 07 | E39: 1976
C40: 08 | D40: 08 | E40: 1977
C41: 09 | D41: 09 | E41: 1978
C42: 10 | D42: 10 | E42: 1979
C43: 11 | D43: 11 | E43: 1980
C44: 12 | D44: 12 | E44: 1981
C45: 13 | E45: 1982
C46: 14 | E46: 1983
C47: 15 | E47: 1984
C48: 16 | E48: 1985
C49: 17 | E49: 1986
C50: 18 | E50: 1987
C51: 19 | E51: 1988
C52: 20 | E52: 1989
C53: 21 | E53: 1990
C54: 22 | E54: 1991
C55: 23 | E55: 1992
C56: 24 | E56: 1993
C57: 25 | E57: 1994
C58: 26 | E58: 1995
C59: 27 | E59: 1996
C60: 28 | E60: 1997
C61: 29 | E61: 1998
C62: 30 | E62: 1999
C63: 31 | E63: 2000
E64: 2001
E65: 2002
E66: 2003
E67: 2004
E68: 2005
E69: 2006
E70: 2007
E71: 2008
E72: 2009
E73: 2010
E74: 2011
E75: 2012
E76: 2013
E77: 2014
E78: 2015
E79: 2016
E80: 2017
E81: 2018
E82: 2019
E83: 2020
E84: 2021
E85: 2022
E86: 2023
E87: 2024

Sheet Tavan (hidden)
A1: KIDEM TAZMİNATI TAVANI
B2: Son Güncelleme | C2: =NOW() -> 2024-01-05T21:30:49.490
A4: VERİLER | B4: 2000-12-15 | C4: 2000-12-31 | D4: 2001-05-15 | E4: 2001-07-15 | F4: 2001-07-01 | G4: 2001-09-15 | H4: 2001-10-15 | I4: 2001-11-15 | J4: 2001-12-15 | K4: 2002-01-01 | L4: 2002-05-15 | M4: 2002-07-01 | N4: 2002-10-01 | O4: 2003-01-01 | P4: 2003-07-01 | Q4: 2004-01-01 | R4: 2004-07-01 | S4: 2005-01-01 | T4: 2005-07-01 | U4: 2006-01-01 | V4: 2006-07-01 | W4: 2007-01-01 | X4: 2007-07-01 | Y4: 2008-01-01 | Z4: 2008-07-01 | AA4: 2009-01-01 | AB4: 2009-07-01 | AC4: 2010-01-01 | AD4: 2010-07-01 | AE4: 2011-01-01 | AF4: 01.01.2011 (YENİ) | AG4: 2011-07-01 | AH4: 2012-01-01 | AI4: 2012-01-01 | AJ4: 2012-01-01 | AK4: 2013-01-01 | AL4: 2013-07-01 | AM4: 2014-01-01 | AN4: 2015-01-01 | AO4: 2015-07-01 | AP4: 2015-09-01 | AQ4: 2016-01-01 | AR4: 2016-07-01 | AS4: 2017-01-01 | AT4: 2017-07-01 | AU4: 2018-01-01 | AV4: 2018-07-01 | AW4: 2019-01-01 | AX4: 2019-07-01 | AY4: 2020-01-01 | AZ4: 2020-07-01 | BA4: 2021-01-01 | BB4: 2021-07-01 | BC4: 2022-01-01 | BD4: 2022-07-01 | BE4: 2023-01-01 | BF4: 2023-07-01 | BG4: 2024-01-01
B5: 2000-12-30 | C5: 2001-05-14 | D5: tarihinden itibaren | E5: tarihinden itibaren | F5: tarihinden itibaren | G5: tarihinden itibaren | H5: tarihinden itibaren | I5: tarihinden itibaren | J5: tarihinden itibaren | K5: tarihinden itibaren | L5: tarihinden itibaren | M5: tarihinden itibaren | N5: tarihinden itibaren | O5: tarihinden itibaren | P5: tarihinden itibaren | Q5: tarihinden itibaren | R5: tarihinden itibaren | S5: tarihinden itibaren | T5: tarihinden itibaren | U5: tarihinden itibaren | V5: tarihinden itibaren | W5: tarihinden itibaren | X5: tarihinden itibaren | Y5: tarihinden itibaren | Z5: tarihinden itibaren | AA5: tarihinden itibaren | AB5: tarihinden itibaren | AC5: tarihinden itibaren | AD5: tarihinden itibaren | AE5: tarihinden itibaren | AF5: tarihinden itibaren | AG5: tarihinden itibaren | AH5: tarihinden itibaren | AI5: tarihinden itibaren | AJ5: tarihinden itibaren (YENİ) | AK5: tarihinden itibaren | AL5: tarihinden itibaren | AM5: tarihinden itibaren | AN5: tarihinden itibaren | AO5: tarihinden itibaren | AP5: tarihinden itibaren | AQ5: tarihinden itibaren | AR5: tarihinden itibaren | AS5: tarihinden itibaren | AT5: tarihinden itibaren | AU5: tarihinden itibaren | AV5: tarihinden itibaren | AW5: tarihinden itibaren | AX5: tarihinden itibaren | AY5: tarihinden itibaren | AZ5: tarihinden itibaren | BA5: tarihinden itibaren | BB5: tarihinden itibaren | BC5: tarihinden itibaren | BD5: tarihinden itibaren | BE5: tarihinden itibaren | BF5: tarihinden itibaren | BG5: tarihinden itibaren
A6: D.M. Gösterge | B6: 1500 | C6: 1500 | D6: 1500 | E6: 1500 | F6: 1500 | G6: 1500 | H6: 1500 | I6: 1500 | J6: 1500 | K6: 1500 | L6: 1500 | M6: 1500 | N6: 1500 | O6: 1500 | P6: 1500 | Q6: 1500 | R6: 1500 | S6: 1500 | T6: 1500 | U6: 1500 | V6: 1500 | W6: 1500 | X6: 1500 | Y6: 1500 | Z6: 1500 | AA6: 1500 | AB6: 1500 | AC6: 1500 | AD6: 1500 | AE6: 1500 | AF6: 1500 | AG6: 1500 | AH6: 1500 | AI6: 1500 | AJ6: 1500 | AK6: 1500 | AL6: 1500 | AM6: 1500 | AN6: 1500 | AO6: 1500 | AP6: 1500 | AQ6: 1500 | AR6: 1500 | AS6: 1500 | AT6: 1500 | AU6: 1500 | AV6: 1500 | AW6: 1500 | AX6: 1500 | AY6: 1500 | AZ6: 1500 | BA6: 1500 | BB6: 1500 | BC6: 1500 | BD6: 1500 | BE6: 1500 | BF6: 1500 | BG6: 1500
A7: D.M. EK Gösterge | B7: 8000 | C7: 8000 | D7: 8000 | E7: 8000 | F7: 8000 | G7: 8000 | H7: 8000 | I7: 8000 | J7: 8000 | K7: 8000 | L7: 8000 | M7: 8000 | N7: 8000 | O7: 8000 | P7: 8000 | Q7: 8000 | R7: 8000 | S7: 8000 | T7: 8000 | U7: 8000 | V7: 8000 | W7: 8000 | X7: 8000 | Y7: 8000 | Z7: 8000 | AA7: 8000 | AB7: 8000 | AC7: 8000 | AD7: 8000 | AE7: 8000 | AF7: 8000 | AG7: 8000 | AH7: 8000 | AI7: 8000 | AJ7: 8000 | AK7: 8000 | AL7: 8000 | AM7: 8000 | AN7: 8000 | AO7: 8000 | AP7: 8000 | AQ7: 8000 | AR7: 8000 | AS7: 8000 | AT7: 8000 | AU7: 8000 | AV7: 8000 | AW7: 8000 | AX7: 8000 | AY7: 8000 | AZ7: 8000 | BA7: 8000 | BB7: 8000 | BC7: 8000 | BD7: 8000 | BE7: 8000 | BF7: 8000 | BG7: 8000
A8: GÖSTERGE TOPLAMI (GT) | B8: =+B6+B7 -> 9500 | C8: =+C6+C7 -> 9500 | D8: =+D6+D7 -> 9500 | E8: =+E6+E7 -> 9500 | F8: 9500 | G8: 9500 | H8: 9500 | I8: 9500 | J8: 9500 | K8: 9500 | L8: 9500 | M8: 9500 | N8: 9500 | O8: 9500 | P8: 9500 | Q8: 9500 | R8: 9500 | S8: 9500 | T8: 9500 | U8: 9500 | V8: 9500 | W8: 9500 | X8: 9500 | Y8: 9500 | Z8: 9500 | AA8: 9500 | AB8: 9500 | AC8: 9500 | AD8: 9500 | AE8: 9500 | AF8: 9500 | AG8: =+AG6+AG7 -> 9500 | AH8: 9500 | AI8: 9500 | AJ8: 9500 | AK8: 9500 | AL8: 9500 | AM8: 9500 | AN8: =SUM(AN6:AN7) -> 9500 | AO8: 9500 | AP8: 9500 | AQ8: 9500 | AR8: 9500 | AS8: 9500 | AT8: 9500 | AU8: =SUM(AU6:AU7) -> 9500 | AV8: 9500 | AW8: =SUM(AW6:AW7) -> 9500 | AX8: 9500 | AY8: 9500 | AZ8: =SUM(AZ6:AZ7) -> 9500 | BA8: 9500 | BB8: =SUM(BB6:BB7) -> 9500 | BC8: 9500 | BD8: =SUM(BD6:BD7) -> 9500 | BE8: 9500 | BF8: =SUM(BF6:BF7) -> 9500 | BG8: 9500
A9: Memur Aylığı Katsayısı (MAK) | B9: 16580 | C9: 18240 | D9: 20600 | E9: 21650 | F9: 22750 | G9: 23550 | H9: 24920 | I9: 26420 | J9: 27530 | K9: 30300 | L9: 31060 | M9: 32650 | N9: 32650 | O9: 34300 | P9: 34300 | Q9: 36420 | R9: 38610 | S9: 0.0401 | U9: 0.04265 | V9: 0.044745 | W9: 0.046985 | X9: 0.04835 | Y9: 0.049318 | Z9: 0.051448 | AA9: 0.053505 | AB9: 0.05592 | AC9: 0.057383 | AD9: 0.059445 | AE9: 0.061823 | AF9: 0.061954 | AG9: 0.06446 | AH9: 0.066187 | AI9: 0.068835 | AJ9: 0.071589 | AK9: 0.073837 | AL9: 0.076791 | AM9: 0.076998 | AN9: 0.079308 | AO9: 0.083084 | AP9: 0.083084 | AQ9: 0.088817 | AR9: 0.093259 | AS9: 0.096058 | AT9: 0.102706 | AU9: 0.10855 | AV9: 0.11794 | AW9: 0.130597 | AX9: 0.138459 | AY9: 0.146061 | AZ9: 0.154461 | BA9: 0.165786 | BB9: 0.179797 | BC9: 0.235445 | BD9: 0.333603 | BE9: 0.433684 | BF9: 0.509796 | BG9: 0.760871
A10: Taban Aylığı Katsayısı (TAK) | B10: 106900 | C10: 117600 | D10: 133300 | E10: 140250 | F10: 147750 | G10: 153000 | H10: 162150 | I10: 172150 | J10: 179650 | K10: 197700 | L10: 202800 | M10: 213300 | N10: 288300 | O10: 329250 | P10: 395250 | Q10: 429250 | R10: 455050 | S10: 0.486 | U10: 0.53377 | V10: 0.55983 | W10: 0.59812 | X10: 0.62804 | Y10: 0.65061 | Z10: 0.6812 | AA10: 0.7084 | AB10: 0.74348 | AC10: 0.76293 | AD10: 0.7931 | AE10: 0.82483 | AF10: 0.82656 | AG10: 0.86251 | AH10: 0.88562 | AI10: 0.92105 | AJ10: 0.9579 | AK10: 0.98798 | AL10: 1.0275 | AM10: 1.205274 | AN10: 1.24144 | AO10: 1.30054 | AP10: 1.30054 | AQ10: 1.390277 | AR10: 1.4598 | AS10: 1.503595 | AT10: 1.607645 | AU10: 1.699121 | AV10: 1.8461 | AW10: 2.044187 | AX10: 2.167248 | AY10: 2.28624 | AZ10: 2.417699 | BA10: 2.594917 | BB10: 2.814188 | BC10: 3.68518 | BD10: 5.221532 | BE10: 6.787992 | BF10: 7.979285 | BG10: 11.909083
A11: Taban Aylığı Göstergesi (TAG) | B11: 1000 | C11: 1000 | D11: 1000 | E11: 1000 | F11: 1000 | G11: 1000 | H11: 1000 | I11: 1000 | J11: 1000 | K11: 1000 | L11: 1000 | M11: 1000 | N11: 1000 | O11: 1000 | P11: 1000 | Q11: 1000 | R11: 1000 | S11: 1000 | T11: 1000 | U11: 1000 | V11: 1000 | W11: 1000 | X11: 1000 | Y11: 1000 | Z11: 1000 | AA11: 1000 | AB11: 1000 | AC11: 1000 | AD11: 1000 | AE11: 1000 | AF11: 1000 | AG11: 1000 | AH11: 1000 | AI11: 1000 | AJ11: 1000 | AK11: 1000 | AL11: 1000 | AM11: 1000 | AN11: 1000 | AO11: 1000 | AP11: 1000 | AQ11: 1000 | AR11: 1000 | AS11: 1000 | AT11: 1000 | AU11: 1000 | AV11: 1000 | AW11: 1000 | AX11: 1000 | AY11: 1000 | AZ11: 1000 | BA11: 1000 | BB11: 1000 | BC11: 1000 | BD11: 1000 | BE11: 1000 | BF11: 1000 | BG11: 1000
A12: Kıdem Aylığı Göstergesi (KAG) | B12: 500 | C12: 500 | D12: 500 | E12: 500 | F12: 500 | G12: 500 | H12: 500 | I12: 500 | J12: 500 | K12: 500 | L12: 500 | M12: 500 | N12: 500 | O12: 500 | P12: 500 | Q12: 500 | R12: 500 | S12: 500 | T12: 500 | U12: 500 | V12: 500 | W12: 500 | X12: 500 | Y12: 500 | Z12: 500 | AA12: 500 | AB12: 500 | AC12: 500 | AD12: 500 | AE12: 500 | AF12: 500 | AG12: 500 | AH12: 500 | AI12: 500 | AJ12: 500 | AK12: 500 | AL12: 500 | AM12: 500 | AN12: 500 | AO12: 500 | AP12: 500 | AQ12: 500 | AR12: 500 | AS12: 500 | AT12: 500 | AU12: 500 | AV12: 500 | AW12: 500 | AX12: 500 | AY12: 500 | AZ12: 500 | BA12: 500 | BB12: 500 | BC12: 500 | BD12: 500 | BE12: 500 | BF12: 500 | BG12: 500
A13: Özel Hizmet Tazminatı Oranı (ÖHTO) | B13: 2 | C13: 2 | D13: 2 | E13: 2 | F13: 2 | G13: 2 | H13: 2 | I13: 2 | J13: 2 | K13: 2 | L13: 2 | M13: 3 | N13: 4 | O13: 5 | P13: 5 | Q13: 5 | R13: 5 | S13: 5 | T13: 5 | U13: 5 | V13: 5 | W13: 5 | X13: 5 | Y13: 5 | Z13: 5 | AA13: 5 | AB13: 5 | AC13: 5 | AD13: 5 | AE13: 5 | AF13: 5 | AG13: 5 | AH13: 5 | AI13: 5 | AJ13: 5 | AK13: 6 | AL13: 6 | AM13: 6 | AN13: 6 | AO13: 6 | AP13: 6 | AQ13: 6 | AR13: 6 | AS13: 6 | AT13: 6 | AU13: 6 | AV13: 6 | AW13: 6 | AX13: 6 | AY13: 6 | AZ13: 6 | BA13: 6 | BB13: 6 | BC13: 6 | BD13: 6 | BE13: 6 | BF13: 6 | BG13: 6
A14: KIDEM TAZMİNATI TAVANI | B14: =+B8*B9+B11*B10+B12*B9+(B8*B9)*2 -> 587720000 | C14: =+C8*C9+C11*C10+C12*C9+(C8*C9)*2 -> 646560000 | D14: =+D8*D9+D11*D10+D12*D9+(D8*D9)*2 -> 730700000 | E14: 768100000 | F14: 807500000 | G14: 835950000 | H14: 884830000 | I14: =+I8*I9+I11*I10+I12*I9+(I8*I9)*2 -> 938330000 | J14: 978020000 | K14: 1076400000 | L14: 1103540000 | M14: 1160150000 | N14: 1235150000 | O14: 1323950000 | P14: 1389950000 | Q14: 1485430000 | R14: 1574740000 | S14: 1648.9 | T14: 0 | U14: 1770.62 | V14: 1857.435 | W14: 1960.685 | X14: 2030.19 | Y14: 2080.832 | Z14: 2173.192 | AA14: 2260.045 | AB14: 2365.16 | AC14: 2427.037 | AD14: 2517.005 | AE14: =+AE8*AE9+AE11*AE10+AE12*AE9+(AE8*AE9)*2 -> 2617.697 | AF14: 2623.226 | AG14: 2731.85 | AH14: 2805.043 | AI14: 2917.265 | AJ14: 3033.981 | AK14: =+AK8*AK9+AK11*AK10+AK12*AK9+(AK8*AK9)*2 -> 3129.253 | AL14: =+AL8*AL9+AL11*AL10+AL12*AL9+(AL8*AL9)*2 -> 3254.439 | AM14: =+AM8*AM9+AM11*AM10+AM12*AM9+(AM8*AM9)*2 -> 3438.216 | AN14: =+AN8*AN9+AN11*AN10+AN12*AN9+(AN8*AN9)*2 -> 3541.372 | AO14: =+AO8*AO9+AO11*AO10+AO12*AO9+(AO8*AO9)*2 -> 3709.976 | AP14: =+AP8*AP9+AP11*AP10+AP12*AP9+(AP8*AP9)*2.15 -> 3828.3707 | AQ14: 4092.534225 | AR14: 4297.205075 | AS14: 4426.15965 | AT14: 4732.47505 | AU14: 5001.75475 | AV14: =+AV8*AV9+AV11*AV10+AV12*AV9+(AV8*AV9)*2.15 -> 5434.4245 | AW14: 6017.600725 | AX14: =+AX8*AX9+AX11*AX10+AX12*AX9+(AX8*AX9)*2.15 -> 6379.863075 | AY14: =+AY8*AY9+AY11*AY10+AY12*AY9+(AY8*AY9)*2.15 -> 6730.145925 | AZ14: 7117.174925 | BA14: =+BA8*BA9+BA11*BA10+BA12*BA9+(BA8*BA9)*2.15 -> 7638.95605 | BB14: 8284.511725 | BC14: =+BC8*BC9+BC11*BC10+BC12*BC9+(BC8*BC9)*2.15 -> 10848.59412 | BD14: 15371.40327 | BE14: =+BE8*BE9+BE11*BE10+BE12*BE9+(BE8*BE9)*2.15 -> 19982.8277 | BF14: 23489.8283 | BG14: =+BG8*BG9+BG11*BG10+BG12*BG9+(BG8*BG9)*2.15 -> 35058.58317
A15: FORMÜL: ( GT*MAK)+(TAG*TAK)+(KAG*MAK*)+(GT*MAK*%200) | X15: RG :07.07.2007-26575 | Y15: RG :28.12.2007-26740 - 5724 s. Merkezi Yönetim Bütçe Kanunu | Z15: RG :07.07.2008-26931 -2008/13860 sayılı BKK | AA15: RG :31.12.2008-27097 -5828 s. Merkezi Yönetim Bütçe Kanunu | AB15: RG :31.12.2008-27097 -5828 s. Merkezi Yönetim Bütçe Kanunu | AC15: RG :12.01.2010. 27460 2010/7 Sayılı BKK | AD15: RG :09.07.2010. 27636 2010/654 Sayılı BKK | AE15: RG :31.12.2010-27802 -6091 s. Merkezi Yönetim Bütçe Kanunu | AF15: RG :05.01.2011. 27806 2011/1241 Sayılı BKK | AG15: RG :05.07.2011. 27985 (2Mük) 2011/2022 Sayılı BKK | AH15: RG :10.01.2012. 28169 - 2012/2663 BKK Sayılı BKK | AI15: RG :01.06.2012. 28310 - Kamu Görevlileri Hakem Kurulunun 29/5/2012 Tarihli ve 2012/1 Sayılı Kararı | AJ15: RG :10.01.2012. 28169 - 2012/2663 BKK Sayılı BKK | AK15: Bütçe ve Mali Kontr. Gn. Md. 03.01.2013 | AL15: Bütçe ve Mali Kontr. Gn. Md. 04.07.2013 | AM15: Bütçe ve Mali Kontr. Gn. Md. 03.01.2014 | AN15: Bütçe ve Mali Kontr. Gn. Md. 31.12.2014 | AO15: Bütçe ve Mali Kontr. Gn. Md. 03.07.2015 | AP15: Bütçe ve Mali Kontr. Gn. Md. 03.07.2015 | AQ15: Bütçe ve Mali Kontr. Gn. Md. 04.01.2016 | AR15: Maliye 04.07.2016 Tarihli Duyuru | AS15: Maliye 03.01.2017 Tarihli Duyuru | AT15: Maliye 04.07.2017 Tarihli Duyuru | AU15: Maliye 04.01.2018 Tarihli Duyuru | AV15: Maliye 04.07.2018 Tarihli Duyuru | AW15: Maliye 09.01.2019 Tarihli Duyuru | AX15: Maliye 04.07.2019 Tarihli Duyuru | AY15: Hazine ve Maliye Bakanlığı Kamu Mali Yönetim ve Dönüşüm GM Genelgesinde | AZ15: Maliye Bakanlığı Bütçe ve Mali Kontrol GM Genelgesinde | BA15: Maliye Bakanlığı Bütçe ve Mali Kontrol GM Genelgesinde | BB15: Hazine ve Maliye Bakanlığı Kamu Mali Yönetim ve Dönüşüm GM Genelgesinde | BC15: Hazine ve Maliye Bakanlığı Kamu Mali Yönetim ve Dönüşüm GM Genelgesinde | BD15: Hazine ve Maliye Bakanlığı Kamu Mali Yönetim ve Dönüşüm GM Genelgesinde | BE15: Hazine ve Maliye Bakanlığı Kamu Mali Yönetim ve Dönüşüm GM Genelgesinde | BF15: Hazine ve Maliye Bakanlığı Kamu Mali Yönetim ve Dönüşüm GM Genelgesinde | BG15: Hazine ve Maliye Bakanlığı Kamu Mali Yönetim ve Dönüşüm GM Genelgesinde
A17: Artış oranı | AG17: =(AG14-AF14)/AF14 -> 0.04140855572 | AH17: 0.02679246664 | AI17: 0.04000722984 | AJ17: 0.04000870679 | AK17: 0.03140164688 | AL17: 0.04000507469 | AM17: 0.05646964039 | AN17: =(AN14-AM14)/AM14 -> 0.03000276888 | AO17: 0.04760979643 | AP17: 0.0319125245 | AQ17: 0.06900155332 | AR17: 0.05001078519 | AS17: 0.03000894133 | AT17: =(AT14-AS14)/AS14 -> 0.06920568263 | AU17: 0.05690039507 | AV17: 0.08650359156 | AW17: 0.1073114964 | AX17: 0.06020046303 | AY17: =(AY14-AX14)/AX14 -> 0.05490444636 | AZ17: =(AZ14-AY14)/AY14 -> 0.05750677687 | BA17: =(BA14-AZ14)/AZ14 -> 0.073312955 | BB17: 0.08450836355 | BC17: 0.3095031409 | BD17: 0.4169027892 | BE17: 0.300000224 | BF17: 0.1755007175 | BG17: 0.4925006146
AU19: NOT:
AU20: Maliye 04.01.2018 Tarihli Duyuru
AU21: tavan 5001,76 TL
AU22: olarak açıklanmıştır.

Sheet Mevzuat (hidden)
C3: 1475 SAYILI İŞ KANUNU
C5: MADDE 13 - AKDİN FESHİNDE BİLDİRİM :
C7: A) Süresi belirli olmayan sürekli hizmet akitlerinin feshinden önce durumun diğer tarafa bildirilmesi gerekir.
C9: Hizmet Akdi:
C10: a) İşi altı aydan az sürmüş olan işçi için, bildirimin diğer tarafa yapılmasından başlayarak iki hafta sonra,
C11: b) İşi altı aydan bir buçuk yıla kadar sürmüş olan işçi için, bildirimin diğer tarafa yapılmasından başlayarak dört hafta sonra,
C12: c) İşi bir buçuk yıldan üç yıla kadar sürmüş olan işçi için, bildirimin diğer tarafa yapılmasından başlayarak altı hafta sonra,
C13: ç) İşi üç yıldan fazla sürmüş olan işçi için,bildirimin diğer tarafa yapılmasından başlayarak sekiz hafta sonra,
C14: feshedilmiş olur.
C16: B) Öneller asgari olup sözleşme ile arttırılabilir.
C18: C) Bildirime şartına uymayan taraf yukarıda yazılı önellere ilişkin ücret tutarında tazminat ödemek zorundadır.
C20: İşveren, işçinin ihbar önellerine ait ücretlerini peşin vermek suretiyle hizmet akdini feshedebilir.
C22: İşçinin sendikaya üye olması, şikayete başvurması gibi sebeplerle işinden çıkartılması hallerinde ve genel olarak hizmet akdini fesih hakkının kötüye kullanıldığını gösteren diğer durumlarda (A) bendinde yazılı önellere ait ücretlerin üç katı tutarı tazminat olarak ödenir.
C24: Tarafların ayrıca tazminat isteme hakları saklıdır.
C27: MADDE 14 - KIDEM TAZMİNATI
C29: (29.7.1983 - 2869 s.k. m.3 ile değişik) Bu Kanun'a tabi işçilerin hizmet akitlerinin :
C30: 1. İşveren tarafından bu Kanun'un 17 nci maddesinin II numaralı bendinde gösterilen sebepler dışında,
C31: 2. işçi tarafından bu Kanun'un 16 ncı maddesi uyarınca,
C32: 3. Muvazzaf askerlik hizmeti dolayısıyla,
C33: 4. Bağlı bulundukları kanunla kurulu kurum veya sandıklardan yaşlılık, emeklilik veya malullük aylığı yahut toptan ödeme almak amacıyla;
C35: Feshedilmesi veya kadının evlendiği tarihten itibaren bir yıl içerisinde kendi arzusu ile sona erdirmesi veya işçinin ölümü sebebiyle son bulması hallerinde işçinin işe başladığı tarihten itibaren hizmet akdinin devamı süresince her geçen tam yıl için işverence işçiye 30 günlük ücreti tutarında kıdem tazminatı ödenir. Bir yıldan artan süreler için de aynı oran üzerinden ödeme yapılır.
C37: (Değişik fıkralar : 17/10/1980 - 2320/1 md.):
C38: İşçilerin kıdemleri, hizmet aktinin devam etmiş veya fasılalarla yeniden aktedilmiş olmasına bakılmaksızın aynı işverenin bir veya değişik işyerlerinde çalıştıkları süreler göz önüne alınarak hesaplanır. İşyerlerinin devir veya intikali yahut herhangi bir suretle bir işverenden başka bir işverene geçmesi veya başka bir yere nakli halinde işçinin kıdemi, işyeri veya işyerlerindeki hizmet akitleri sürelerinin toplamı üzerinden hesaplanır.
C40: 12.7.1975 tarihinden itibaren (2) işyerinin devri veya herhangi bir suretle el değiştirmesi halinde işlemiş kıdem tazminatlarından her iki işveren sorumludur. Ancak, işyerini devreden işverenlerin bu sorumlulukları işçiyi çalıştırdıkları sürelerle ve devir esnasındaki işçinin aldığı ücret seviyesi ile sınırlıdır. 12.7.1975 tarihinden evvel (3) işyeri devrolmuş veya herhangi bir suretle el değiştirmişse devir mukavelesinde aksine bir hüküm yoksa işlemiş kıdem tazminatlarından yeni işveren sorumludur.
C42: İşçinin birinci bendin 4 üncü fıkrası hükmünden faydalanabilmesi için aylık veya toptan ödemeye hak kazanmış bulunduğunu ve kendisine aylık bağlanması veya toptan ödeme yapılması için yaşlılık sigortası bakımından bağlı bulunduğu kuruma veya sandığa müracaat etmiş olduğunu belgelemesi şarttır. İşçinin ölümü halinde bu şart aranmaz.
C44: T.C. Emekli Sandığı Kanunu ve Sosyal Sigortalar Kanunu'na veya yalnız Sosyal Sigortalar Kanunu'na tabi olarak sadece aynı ya da değişik kamu kuruluşlarında geçen hizmet sürelerinin birleştirilmesi suretiyle Sosyal Sigortalar Kanunu'na göre yaşlılık veya malullük aylığına ya da toptan ödemeye hak kazanan işçiye,bu kamu kuruluşlarında geçirdiği hizmet sürelerinin toplamı üzerinden son kamu kuruluşu işverenince kıdem tazminatı ödenir.
C46: Yukarıda belirtilen kamu kuruluşlarında işçinin hizmet aktinin evvelce bu maddeye göre kıdem tazminatı ödenmesini gerektirmeyecek şekilde sona ermesi suretiyle geçen hizmet süreleri kıdem tazminatının hesabında dikkate alınmaz.
C48: Ancak, bu tazminatın T.C. Emekli Sandığı'na tabi olarak geçen hizmet süresine ait kısmı için ödenecek miktar, yaşlılık veya malullük aylığının başlangıç tarihinde T.C. Emekli Sandığı Kanunu'nun yürürlükteki hükümlerine göre emeklilik ikramiyesi için öngörülen miktardan fazla olamaz.
C50: Bu maddede geçen kamu kuruluşları deyimi, genel, katma ve özel bütçeli idareler ile 468 sayılı kanunun 4 üncü maddesinde sayılan kurumları kapsar.(4)
C52: Aynı kıdem süresi için bir defadan fazla kıdem tazminatı veya ikramiye ödenmez.
C54: Kıdem tazminatının hesaplanması, son ücret üzerinden yapılır. Parça başı, akort, götürü veya yüzde usulü gibi ücretin sabit olmadığı hallerde son bir yıllık süre içinde ödenen ücretin o süre içinde çalışılan günlere bölünmesi suretiyle bulunacak ortalama ücret bu tazminatın hesabına esas tutulur.
C56: Ancak, son bir yıl içinde işçi ücretine zam yapıldığı takdirde, tazminata esas ücret, işçinin işten ayrılma tarihi ile zammın yapıldığı tarih arasında alınan ücretin aynı süre içinde çalışılan günlere bölünmesi suretiyle hesaplanır.
C58: (29.7.1983 - 2869/3 md. ile değişik) 13 üncü maddenin (C) bendinde sözü geçen tazminat ile bu maddede yer alan kıdem tazminatına esas olacak ücretin hesabında 26 ancı maddenin birinci fıkrasında yazılı ücrete ilaveten işçiye sağlanmış olan para ve para ile ölçülmesi mümkün akti ve kanundan doğan menfaatler de göz önünde tutulur. Kıdem tazminatının zamanında ödenmemesi sebebiyle açılacak davanın sonunda hakim gecikme süresi için, ödenmeyen süreye göre mevduata uygulanan en yüksek faizin ödenmesine hükmeder. İşçinin mevzuat dan doğan diğer hakları saklıdır.
C60: (17.10.1980 - 2320/1 md. ile değişik) Bu maddede belirtilen kıdem tazminatı ile ilgili 30 günlük süre hizmet akitleri veya toplu iş sözleşmeleri ile işçi lehine değiştirilebilir.
C62: (10.12.1982 - 2762/1 md. ile değişik) Ancak, toplu sözleşmelerle ve hizmet akitleriyle belirlenen kıdem tazminatlarının yıllık miktarı, Devlet Memurları Kanunu'na tabi en yüksek devlet memuruna 5434 sayılı T.C. Emekli Sandığı Kanunu hükümlerine göre bir hizmet yılı için ödenecek azami emeklilik ikramiyesini geçemez.
C64: (17.10.1980 - 2320/1 md. ile değişik fıkralar) : İşçinin ölümü halinde yukarıdaki hükümlere göre doğan tazminat tutarı, kanuni mirasçılarına denir.
C66: Kıdem tazminatından doğan sorumluluğu işveren şahıslara veya sigorta şirketlerine sigorta ettiremez.
C68: İşveren sorumluluğu altında ve sadece yaşlılık, emeklilik, malullük, ölüm ve toptan ödeme hallerine mahsus olmak kaydıyla Devlet veya kanunla kurulu kurumlarda veya % 50 hisseden fazlası devlete ait bir bankada veya bir kurumda işveren tarafından kıdem tazminatı ile ilgili bir fon tesis edilir.
C70: Fon tesisi ile ilgili hususlar kanunla düzenlenir.(1) - Kıdem tazminatı üst sınırları ve uygulama dönemleri için, bu Yasa'nın sonundaki "Ek : Kıdem Tazminatı (tablolar)" bölümüne bakınız.
C74: Ali Tezel (31.08.2015)
C75: 475 sayılı mülga İş Kanunu’nun yürürlükteki tek maddesi olarak kıdem tazminatını düzenleyen 14’üncü maddede; “Toplu sözleşmelerle ve hizmet akitleriyle belirlenen kıdem tazminatlarının yıllık miktarı, Devlet Memurları Kanunu’na tabi en yüksek devlet memuruna 5434 sayılı T.C. Emekli Sandığı Kanunu hükümlerine göre bir hizmet yılı için ödenecek azami emeklilik ikramiyesini geçemez” hükmünü amir bulunuyor. İşte bu sınıra kıdem tazminatı tavanı deniyor. Kıdem tazminatı tavanı aynı zamanda bir emekli ikramiyesi hesabı demek oluyor. Memurun emekli ikramiyesi aynı zamanda o memurun “Emekli Sandığı matrahı” demek oluyor.
C77: Bu kavram önemli bir unsur olarak öne çıkıyor. Zira memurun emekli ikramiyesi de emekli maaşı da, görevdeki memurun ve kurumunun ödeyeceği kesenek ve karşılıklar da o memurun Emekli Sandığı matrahına göre hesaplanır ve ödenir.
C81: KAMUDA EK GÖSTERGE 1500
C83: Emekli Sandığı matrahı; “gösterge aylığı”, “ek gösterge aylığı”, “kıdem aylığı”, “ek göstergeye göre tazminat” ve “taban aylığından” oluşur. Bu unsurlar da kıdem, derece ve kademe ile unvana göre belirlenen ek göstergeye göre saptanır.
C85: Ek göstergeye göre ödenen tazminat en yüksek devlet memuru aylığının gösterge ile ek gösterge toplamına göre hesaplanır ve tutarı itibariyle Emekli Sandığı matrahındaki en önemli iki kalemden biridir.
C87: Kamuda 1’inci derecenin 4’üncü kademesi için uygulanan en yüksek gösterge 1500’dür. En yüksek ek gösterge ise Genelkurmay başkanı için 9000, kuvvet komutanları ve jandarma genel komutanı için 8400’dür. Ama bu kişiler 657 sayılı Devlet Memurları Kanunu’na tabi değildirler.
C89: YÜZDE 215'E ÇIKARILDI
C91: Kıdem tazminatına ilişkin 1475 sayılı Yasada “En yüksek devlet memuruna ödenecek azami emekli ikramiyesi” kavramı kullanıldığı için kıdem tazminatı tavan hesabında da 657 sayılı Devlet Memurları Kanunu’na tabi memurlar arasında en yüksek devlet memuru olan Başbakanlık Müsteşarına uygulanan 8000 ek gösterge esas alınır.
C93: Emekli Sandığı matrahı içindeki “Ek göstergeye göre tazminat” 5434 sayılı Türkiye Cumhuriyeti Emekli Sandığı Kanunu’nun mülga ek 70’inci maddesine göre hesaplanır. Buna göre “Ek göstergesi 7600 (dahil) - 8400 (hariç) arasında olanlarda yüzde 200’üne” ibaresindeki yüzde 200 rakamı uygulanması gerekiyor iken 1 Eylül 2015 tarihinden geçerli olarak bu rakam yüzde 215 olarak değiştirilmiş bulunuyor.
C95: 2015/8047 sayılı BKK ile yapılan bu değişiklik dolayısıyla kıdem tazminatı tavanını da değiştirmiş oluyor ve yeni hesapla;
C97: Kıdem tazminat tavanının da 1 Eylül 2015 tarihinden itibaren 3 bin 709 lira değil, 3 bin 828 lira olarak uygulanması gerekliliği ortaya çıkıyor.
C99: *****
C101: 10 YILI DOLDURUNCA KIDEM TAZMİNATLI OLARAK AYRILABİLİR MİYİM?
C103: Ali Bey, 2006 Kasım ayından beri aynı iş yerinde çalışıyorum. Aynı iş yerinde 10 yılımı doldurursam kıdem tazminatımı alıp ayrılabilir miyim? 15 yıl olmak zorunda mı? (Nurcan Telek)
C106: Sayın Telek, 4857 sayılı İş Kanunu’na göre çalışanların kıdem tazminatı hakkı aynı iş yerinde bir yıllık kıdemin dolmasıyla başlar. İşten ayrılış şeklinize göre tazminat hakkıyla veya tazminatsız olarak ayrılırsınız. Aynı iş yerinde ne 10 ne de 15 yıl çalışma şartı yoktur. 15 yıl ve 3 bin 600 günle işten tazminatlı ayrılmada sözü edilen 15 yıl ilk defa sigortalılık başlangıcından itibaren geçmesi gereken süredir. Eğer 08.09.1999’dan önce bir gün bile bir sigortalılığınız varsa 15 yıl ve 3 bin 600 gün şartlarını sağlamış olacağınızdan “Yaş şartının dolmasını çalışmadan bekleme” gerekçesiyle işten tazminatlı olarak ayrılabilirsiniz.
